bitfinex/quotes_SOLUSD_20250622
["timestamp","ask_amount","ask_price","bid_price","bid_amount"]
[1750564591099,0.14216157,134.5,134.47,4.46196177]
[1750564591100,0.14216157,134.49,134.47,4.46196177]
[1750564591314,11.29769858,134.48,134.47,4.46196177]
[1750564591712,0.14216157,134.47,134.43,11.15814579]
[1750564592020,0.14216157,134.45,134.44,4.46295745]
[1750564592211,0.14216157,134.44,134.39,4.4646179]
[1750564592415,11.15553701,134.41,134.39,4.4646179]
[1750564592726,26.14216157,134.44,134.39,15.62616265]
[1750564592921,0.14216157,134.42,134.39,15.62616265]
[1750564593607,7.7826,134.46,134.4,11.15553701]
[1750564593803,7.7826,134.46,134.42,11.15553701]
[1750564593804,1.5739,134.46,134.42,11.15553701]
[1750564594121,17.74651181,134.47,134.42,11.15553701]
[1750564594419,6.5909748,134.47,134.43,55.80518587]
[1750564594795,6.5909748,134.47,134.44,11.15553701]
[1750564595001,6.5909748,134.47,134.43,44.64964886]
[1750564595216,6.5909748,134.47,134.45,4.46262551]
[1750564598354,6.5909748,134.47,134.46,55.80518587]
[1750564598715,0.14216157,134.53,134.46,55.80518587]
[1750564598899,0.14216157,134.53,134.49,11.15553701]
[1750564599518,11.29769858,134.53,134.48,11.15553701]
[1750564600035,11.15553701,134.52,134.47,26.77240321]
[1750564600408,0.14216157,134.51,134.47,26.77240321]
[1750564600601,11.15553701,134.51,134.47,26.77240321]
[1750564601006,0.14216157,134.5,134.47,15.6168662]
[1750564601407,0.14216157,134.5,134.47,26.77240321]
[1750564603411,0.14216157,134.53,134.47,26.77240321]
[1750564603615,0.14216157,134.5,134.47,26.77240321]
[1750564604022,0.14216157,134.5,134.47,15.6168662]
[1750564604228,0.14216157,134.5,134.47,26.77240321]
[1750564604532,1.5739,134.54,134.47,26.77240321]
[1750564604717,1.5739,134.54,134.48,11.15553701]
[1750564604718,11.15553701,134.53,134.48,11.15553701]
[1750564604911,0.14216157,134.52,134.48,11.15553701]
[1750564605615,0.14216157,134.52,134.48,11.15407495]
[1750564605859,11.29769858,134.52,134.48,15.61570493]
[1750564606023,1.5739,134.54,134.48,4.46162998]
[1750564606224,11.15553701,134.51,134.48,4.46162998]
[1750564606529,0.14216157,134.5,134.48,15.61570493]
[1750564606710,0.14216157,134.51,134.48,15.61570493]
[1750564606916,1.5739,134.54,134.48,26.77124194]
[1750564606917,11.15553701,134.53,134.48,26.77124194]
[1750564607544,1.5739,134.54,134.49,11.15553701]
[1750564607707,6.2087,134.56,134.52,11.15553701]
[1750564607908,11.15553701,134.57,134.52,11.15553701]
[1750564608108,0.14216157,134.56,134.53,11.15553701]
[1750564608411,0.14216157,134.56,134.52,11.15553701]
[1750564608613,11.15553701,134.57,134.52,11.15553701]
[1750564608814,0.14216157,134.54,134.5,11.15553701]
[1750564609020,11.15553701,134.53,134.49,11.15553701]
[1750564609512,0.14216157,134.54,134.49,11.15553701]
[1750564609513,11.29769858,134.54,134.49,11.15553701]
[1750564610031,11.29769858,134.54,134.5,15.61338289]
[1750564610845,0.14216157,134.54,134.5,26.7689199]
[1750564611004,11.15553701,134.55,134.5,26.7689199]
[1750564611211,11.15553701,134.56,134.51,29.80518587]
[1750564612013,27.08063968,134.58,134.54,11.15553701]
[1750564612218,14.31770267,134.58,134.55,15.61484581]
[1750564612418,14.31770267,134.58,134.57,11.15553701]
[1750564612635,7.17770267,134.58,134.56,11.15553701]
[1750564612835,7.17770267,134.58,134.56,18.5672833]
[1750564613033,7.17770267,134.58,134.55,15.60758081]
[1750564613361,7.17770267,134.58,134.56,18.5672833]
[1750564613713,7.17770267,134.58,134.57,18.5672833]
[1750564614333,14.5813,134.64,134.58,18.64964886]
[1750564614527,8.5542,134.64,134.6,18.5672833]
[1750564615628,7.04,134.64,134.6,18.5672833]
[1750564616333,7.04,134.64,134.61,15.60062401]
[1750564617524,7.04,134.64,134.61,34.16790731]
[1750564617833,18.5672833,134.66,134.61,34.16790731]
[1750564618235,0.14216157,134.66,134.62,18.5672833]
[1750564618646,18.70944487,134.66,134.61,34.16790731]
[1750564621048,18.5672833,134.65,134.61,15.60062401]
[1750564621224,18.5672833,134.65,134.61,34.16790731]
[1750564621433,0.14216157,134.68,134.64,18.5672833]
[1750564621649,0.14216157,134.68,134.65,4.45599702]
[1750564622229,0.14216157,134.68,134.65,15.59598959]
[1750564622435,33.21824038,134.69,134.65,15.59598959]
[1750564622630,18.5672833,134.67,134.65,4.45599702]
[1750564622928,14.65095708,134.69,134.59,1.5731]
[1750564622929,18.70944487,134.66,134.63,4.45665899]
[1750564623129,0.14216157,134.63,134.6,4.4576523]
[1750564623343,0.14216157,134.63,134.6,15.60178305]
[1750564623344,18.5672833,134.63,134.6,15.60178305]
[1750564623641,18.5672833,134.64,134.6,15.60178305]
[1750564624630,18.70944487,134.65,134.6,34.16906635]
[1750564625653,18.5672833,134.64,134.6,34.16906635]
[1750564626552,18.70944487,134.65,134.6,34.16906635]
[1750564626752,6.5882,134.67,134.62,18.5672833]
[1750564626753,25.1554833,134.67,134.62,18.5672833]
[1750564627052,18.5672833,134.67,134.63,18.5672833]
[1750564627443,18.5672833,134.67,134.62,18.5672833]
[1750564628264,18.5672833,134.67,134.63,15.59830646]
[1750564630137,0.14216157,134.68,134.63,15.59830646]
[1750564630471,18.5672833,134.67,134.63,11.14164747]
[1750564630836,0.14216157,134.68,134.64,18.5672833]
[1750564631052,14.65095708,134.69,134.65,18.5672833]
[1750564632458,14.65095708,134.69,134.66,15.59483142]
[1750564633079,7.61095708,134.69,134.67,37.21693216]
[1750564633578,7.61095708,134.69,134.68,18.5672833]
[1750564633750,38.2,134.74,134.68,37.21693216]
[1750564633751,25.6072833,134.74,134.68,37.21693216]
[1750564633938,18.5672833,134.73,134.69,18.5672833]
[1750564634679,18.5672833,134.73,134.7,4.45434298]
[1750564635569,18.5672833,134.73,134.7,15.59020044]
[1750564635897,18.70944487,134.73,134.7,15.59020044]
[1750564636961,18.70944487,134.73,134.7,4.45434298]
[1750564637170,18.5672833,134.72,134.7,4.45434298]
[1750564638574,18.5672833,134.72,134.69,4.45467369]
[1750564639477,18.70944487,134.73,134.69,4.45467369]
[1750564640665,18.70944487,134.73,134.69,15.59135792]
[1750564641463,0.14216157,134.71,134.69,4.45467369]
[1750564642646,18.70944487,134.71,134.68,15.59249168]
[1750564645458,18.5672833,134.69,134.66,4.45566612]
[1750564645652,18.70944487,134.67,134.66,4.45566612]
[1750564646867,11.27192781,134.67,134.63,11.14085089]
[1750564647372,11.27192781,134.67,134.63,22.27061713]
[1750564647373,0.14216157,134.67,134.63,22.27061713]
[1750564648964,11.12976624,134.68,134.63,22.27061713]
[1750564648965,18.54835001,134.68,134.63,56.42915484]
[1750564649172,0.14216157,134.68,134.64,18.54835001]
[1750564649756,18.54835001,134.69,134.64,18.54835001]
[1750564649956,18.54835001,134.69,134.64,18.64964886]
[1750564650174,18.54835001,134.69,134.64,37.19799887]
[1750564650554,18.54835001,134.69,134.65,15.59598959]
[1750564650754,0.14216157,134.69,134.65,15.59598959]
[1750564650953,18.69051158,134.69,134.65,15.59598959]
[1750564652789,0.14216157,134.69,134.65,34.1443396]
[1750564655098,0.14216157,134.69,134.65,15.59598959]
[1750564655289,0.14216157,134.69,134.65,34.1443396]
[1750564656507,18.54835001,134.7,134.66,18.54835001]
[1750564656703,18.69051158,134.71,134.67,15.59367341]
[1750564659194,1.5193,134.73,134.68,18.64964886]
[1750564659391,20.06765001,134.73,134.68,37.19799887]
[1750564660888,20.06765001,134.73,134.69,15.59135792]
[1750564661711,25.55622862,134.73,134.69,15.59135792]
[1750564662283,20.06765001,134.73,134.69,15.59135792]
[1750564662486,7.04,134.74,134.71,18.54835001]
[1750564662780,7.04,134.74,134.72,4.45368171]
[1750564663593,18.54835001,134.75,134.72,15.58788598]
[1750564663789,0.14216157,134.74,134.72,4.45368171]
[1750564664001,18.69051158,134.73,134.72,4.45368171]
[1750564664304,0.14216157,134.73,134.72,4.45368171]
[1750564664695,18.54835001,134.74,134.72,4.45368171]
[1750564665018,18.69051158,134.75,134.71,15.58879536]
[1750564665695,0.14216157,134.76,134.72,18.54835001]
[1750564666015,20.05525001,134.77,134.72,18.54835001]
[1750564666614,7.82510729,134.81,134.76,63.19799887]
[1750564666819,7.82510729,134.81,134.8,18.54835001]
[1750564666992,24.0339597,134.86,134.8,18.54835001]
[1750564667184,5.48560969,134.86,134.83,18.54835001]
[1750564667411,6.96,134.89,134.85,18.54835001]
[1750564667710,6.96,134.89,134.86,18.54835001]
[1750564667891,0.14216157,134.9,134.86,18.54835001]
[1750564668301,18.54835001,134.91,134.86,18.54835001]
[1750564668501,0.14216157,134.91,134.87,18.54835001]
[1750564668807,15.08164735,134.92,134.88,15.56939501]
[1750564668992,7.7532,134.92,134.88,34.11774502]
[1750564669196,6.96,134.94,134.89,18.54835001]
[1750564669404,6.96,134.94,134.9,18.54835001]
[1750564669588,25.50835001,134.94,134.89,18.54835001]
[1750564669914,0.14216157,134.93,134.89,18.54835001]
[1750564670217,18.54835001,134.93,134.88,34.11774502]
[1750564670991,18.54835001,134.92,134.88,15.56939501]
[1750564671193,0.14216157,134.91,134.88,15.56939501]
[1750564673007,0.14216157,134.91,134.88,29.66934645]
[1750564673789,0.14216157,134.93,134.88,11.12099644]
[1750564673995,18.54835001,134.92,134.88,11.12099644]
[1750564674712,0.14216157,134.91,134.86,4.44905828]
[1750564674908,0.14216157,134.91,134.86,15.54011836]
[1750564674909,0.14216157,134.89,134.86,15.54011836]
[1750564676615,0.14216157,134.89,134.86,26.66276406]
[1750564677419,0.14216157,134.89,134.86,15.57170398]
[1750564677802,0.14216157,134.93,134.86,26.66276406]
[1750564678014,0.14216157,134.9,134.87,11.09106008]
[1750564678210,11.09106008,134.92,134.87,11.09106008]
[1750564678533,0.14216157,134.91,134.87,11.09106008]
[1750564679420,11.09106008,134.93,134.88,11.09106008]
[1750564679720,0.14216157,134.92,134.89,15.56824078]
[1750564679923,11.09106008,134.93,134.89,15.56824078]
[1750564680215,6.96,134.94,134.9,11.09106008]
[1750564680598,18.84426008,134.96,134.92,11.09106008]
[1750564680954,0.14216157,134.95,134.91,11.09106008]
[1750564681508,0.14216157,134.95,134.92,11.09106008]
[1750564681699,0.14216157,134.95,134.93,4.44675016]
[1750564682195,24.02166008,134.99,134.94,11.09106008]
[1750564682395,0.14216157,134.98,134.95,11.09106008]
[1750564682603,0.14216157,134.98,134.94,11.09106008]
[1750564682807,11.23322165,134.98,134.93,26.65468565]
[1750564683497,11.23322165,134.98,134.93,15.56362557]
[1750564683692,0.14216157,134.93,134.88,18.64964886]
[1750564683924,0.14216157,134.93,134.89,11.09106008]
[1750564684929,0.14216157,134.93,134.87,63.81419143]
[1750564685229,11.23322165,134.93,134.87,63.81419143]
[1750564685421,11.09106008,134.92,134.88,11.09106008]
[1750564686341,0.14216157,134.92,134.89,15.56824078]
[1750564686513,0.14216157,134.92,134.89,26.65930086]
[1750564686825,0.14216157,134.92,134.89,34.04475977]
[1750564687216,0.14216157,134.92,134.89,15.56824078]
[1750564688226,18.47651899,134.95,134.9,18.47651899]
[1750564688478,6.0506,134.96,134.92,18.47651899]
[1750564688479,18.47651899,134.96,134.92,18.47651899]
[1750564688648,18.47651899,134.96,134.91,18.64964886]
[1750564688835,18.47651899,134.96,134.92,18.47651899]
[1750564689632,18.47651899,134.96,134.93,15.56362557]
[1750564689820,18.61868056,134.97,134.93,15.56362557]
[1750564690223,18.47651899,134.97,134.93,15.56362557]
[1750564692014,18.61868056,134.98,134.93,34.04014456]
[1750564692229,18.61868056,134.98,134.94,18.47651899]
[1750564692656,25.35651899,134.99,134.94,18.47651899]
[1750564693028,18.47651899,134.99,134.95,18.47651899]
[1750564693822,18.47651899,134.99,134.94,18.64964886]
[1750564694045,18.47651899,134.99,134.95,15.561319]
[1750564694554,0.14216157,134.99,134.95,15.561319]
[1750564694749,18.61868056,134.99,134.95,15.561319]
[1750564696455,0.14216157,134.99,134.95,15.561319]
[1750564696760,18.47651899,135.0,134.96,18.64964886]
[1750564696944,0.14216157,135.01,134.97,18.47651899]
[1750564697327,18.47651899,135.02,134.97,18.47651899]
[1750564697753,0.14216157,135.01,134.97,18.47651899]
[1750564698841,0.14216157,135.01,134.97,15.5590131]
[1750564699227,18.47651899,135.0,134.97,15.5590131]
[1750564699642,15.97651899,135.0,134.97,15.5590131]
[1750564700559,0.14216157,135.0,134.97,15.5590131]
[1750564701155,7.7766,135.03,134.98,18.64964886]
[1750564701369,6.86,135.04,134.99,18.47651899]
[1750564701662,6.86,135.04,135.01,18.47651899]
[1750564701843,18.47651899,135.05,135.0,18.47651899]
[1750564702153,18.47651899,135.04,134.99,18.47651899]
[1750564702557,0.14216157,135.04,135.0,18.47651899]
[1750564703156,13.1919347,135.07,135.01,34.03092236]
[1750564703474,18.47651899,135.05,135.01,34.03092236]
[1750564704134,16.97651899,135.05,135.01,34.03092236]
[1750564704673,18.47651899,135.05,135.01,15.55440337]
[1750564705476,0.14216157,135.06,135.01,15.55440337]
[1750564705764,18.47651899,135.05,135.01,18.47651899]
[1750564705940,18.61868056,135.06,135.01,18.47651899]
[1750564706847,11.20703905,135.06,135.01,29.71452634]
[1750564707054,5.43388643,135.07,135.03,11.06487748]
[1750564707362,16.49876391,135.08,135.03,11.06487748]
[1750564707557,6.82830222,135.12,135.05,29.71452634]
[1750564707735,11.06487748,135.1,135.06,4.44247001]
[1750564707936,16.50500339,135.1,135.06,15.54864504]
[1750564708264,5.44023314,135.12,135.06,26.61352252]
[1750564708560,11.06487748,135.11,135.06,26.61352252]
[1750564708959,0.14216157,135.1,135.06,26.61352252]
[1750564709144,11.06487748,135.11,135.06,26.61352252]
[1750564709543,0.14216157,135.1,135.06,26.61352252]
[1750564709968,0.14216157,135.1,135.06,15.54864504]
[1750564710141,11.06487748,135.09,135.06,15.54864504]
[1750564710458,0.14216157,135.1,135.06,15.54864504]
[1750564710637,0.14216157,135.1,135.06,26.61352252]
[1750564711841,11.20703905,135.09,135.06,15.54864504]
[1750564712046,0.14216157,135.06,135.01,34.15864159]
[1750564712257,11.06487748,135.04,135.01,15.55440337]
[1750564712662,0.14216157,135.03,135.01,4.44411525]
[1750564712966,11.20703905,135.02,135.01,4.44411525]
[1750564713367,5.45187256,135.02,135.01,4.44411525]
[1750564713544,11.06487748,135.03,135.01,4.44411525]
[1750564713979,11.06487748,135.03,135.0,11.11099156]
[1750564714659,0.14216157,135.04,135.0,11.11099156]
[1750564714980,18.44941614,135.03,135.0,11.11099156]
[1750564715338,0.14216157,135.04,135.0,11.11099156]
[1750564715546,18.44941614,135.03,135.0,11.11099156]
[1750564715770,18.59157771,135.04,135.0,11.11099156]
[1750564716081,18.59157771,135.04,135.0,15.555436]
[1750564716747,37.62,135.07,135.01,37.099065]
[1750564716953,6.82,135.07,135.03,18.44941614]
[1750564717151,6.82,135.07,135.04,18.44941614]
[1750564717344,6.82,135.07,135.01,18.64964886]
[1750564717544,5.59468427,135.08,135.04,18.44941614]
[1750564717749,0.14216157,135.08,135.04,18.44941614]
[1750564717950,18.44941614,135.08,135.04,15.55094786]
[1750564718351,18.44941614,135.11,135.06,44.44941614]
[1750564718750,0.14216157,135.1,135.07,18.44941614]
[1750564719352,0.14216157,135.1,135.08,4.44181225]
[1750564720653,0.14216157,135.11,135.08,15.54634289]
[1750564721254,18.44941614,135.12,135.08,15.54634289]
[1750564721449,0.14216157,135.11,135.08,15.54634289]
[1750564723452,18.44941614,135.13,135.08,33.99575903]
[1750564723652,0.14216157,135.12,135.08,33.99575903]
[1750564724462,0.14216157,135.12,135.08,56.20482032]
[1750564724954,18.59157771,135.12,135.08,15.54634289]
[1750564726767,0.14216157,135.14,135.08,15.54634289]
[1750564726967,0.14216157,135.09,135.08,4.44181225]
[1750564727154,18.59157771,135.09,135.07,4.44214111]
[1750564727766,0.14216157,135.09,135.07,4.44214111]
[1750564728367,5.45833863,135.14,135.07,15.54749389]
[1750564728571,0.14216157,135.12,135.07,33.99691003]
[1750564728772,18.59157771,135.12,135.07,33.99691003]
[1750564730982,18.44941614,135.11,135.07,33.99691003]
[1750564731578,0.14216157,135.11,135.07,33.99691003]
[1750564731879,18.44941614,135.13,135.08,37.099065]
[1750564732867,25.26941614,135.15,135.11,18.44941614]
[1750564733585,25.26941614,135.15,135.12,15.54174066]
[1750564734452,18.44941614,135.14,135.12,15.54174066]
[1750564734655,18.59157771,135.14,135.12,15.54174066]
[1750564734982,11.19405148,135.14,135.12,15.54174066]
[1750564735563,11.19405148,135.14,135.1,48.80053162]
[1750564736179,11.19405148,135.14,135.1,26.59593136]
[1750564736659,0.14216157,135.14,135.1,26.59593136]
[1750564737069,6.82,135.15,135.1,26.59593136]
[1750564737590,6.82,135.15,135.1,15.54404145]
[1750564737777,6.82,135.15,135.1,26.59593136]
[1750564738091,11.05188991,135.13,135.1,15.54404145]
[1750564739881,11.19405148,135.14,135.1,15.54404145]
[1750564740188,0.14216157,135.14,135.1,26.59593136]
[1750564740563,6.82,135.15,135.12,11.05188991]
[1750564740892,11.05188991,135.17,135.13,11.05188991]
[1750564741273,0.14216157,135.17,135.13,11.05188991]
[1750564741592,1.5911735,135.18,135.14,37.05188991]
[1750564742176,12.64306341,135.18,135.15,4.43951165]
[1750564742662,11.05188991,135.17,135.15,15.53829078]
[1750564743060,11.19405148,135.16,135.15,4.43951165]
[1750564743265,11.19405148,135.16,135.1,11.10216118]
[1750564743496,11.05188991,135.14,135.1,26.59520579]
[1750564744503,11.05188991,135.14,135.1,52.59520579]
[1750564744673,11.05188991,135.14,135.1,26.59520579]
[1750564744871,18.41936906,135.14,135.1,33.96268494]
[1750564745088,18.41936906,135.14,135.1,15.54331588]
[1750564745603,0.14216157,135.16,135.1,15.54331588]
[1750564745901,18.41936906,135.15,135.1,52.6123338]
[1750564746287,18.56153063,135.16,135.11,18.41936906]
[1750564746491,6.3217,135.17,135.12,18.41936906]
[1750564746669,0.14216157,135.16,135.12,18.41936906]
[1750564747891,18.56153063,135.16,135.12,18.41936906]
[1750564748287,18.56153063,135.16,135.13,4.44016872]
[1750564749305,6.3217,135.17,135.13,15.54059053]
[1750564749468,18.41936906,135.16,135.13,15.54059053]
[1750564751001,18.41936906,135.16,135.13,41.54059053]
[1750564751972,5.4906385,135.17,135.13,41.54059053]
[1750564752175,18.41936906,135.16,135.13,41.54059053]
[1750564752677,18.41936906,135.17,135.13,41.54059053]
[1750564752884,18.41936906,135.16,135.13,41.54059053]
[1750564753707,18.41936906,135.16,135.13,15.54059053]
[1750564754201,18.41936906,135.15,135.13,15.54059053]
[1750564754778,18.41936906,135.16,135.13,11.10042181]
[1750564755900,18.41936906,135.17,135.13,11.10042181]
[1750564756101,20.15270413,135.18,135.13,29.51979087]
[1750564756274,20.01054256,135.18,135.13,29.51979087]
[1750564756474,1.5911735,135.18,135.14,18.41936906]
[1750564756671,1.5911735,135.18,135.16,4.43918319]
[1750564756977,1.5911735,135.18,135.17,37.06901792]
[1750564757301,1.5911735,135.18,135.17,38.66471792]
[1750564757600,1.5911735,135.18,135.17,38.80687949]
[1750564757799,5.49319042,135.28,135.21,18.64964886]
[1750564758008,23.91255948,135.28,135.24,18.41936906]
[1750564758175,23.91255948,135.28,135.21,18.64964886]
[1750564758375,5.49319042,135.28,135.24,18.41936906]
[1750564758577,18.41936906,135.27,135.23,18.64964886]
[1750564758795,18.41936906,135.27,135.24,15.5279503]
[1750564759100,18.56153063,135.25,135.24,4.43655723]
[1750564759996,0.14216157,135.25,135.24,4.43655723]
[1750564760201,18.41936906,135.25,135.24,4.43655723]
[1750564760379,0.14216157,135.27,135.24,4.43655723]
[1750564760789,18.41936906,135.25,135.21,15.53061014]
[1750564761010,18.41936906,135.25,135.24,26.0]
[1750564761199,18.41936906,135.25,135.21,41.53061014]
[1750564761390,18.41936906,135.25,135.21,59.9499792]
[1750564761588,18.41936906,135.25,135.21,41.53061014]
[1750564762505,18.41936906,135.25,135.21,59.9499792]
[1750564763001,0.14216157,135.27,135.21,59.9499792]
[1750564763205,18.41936906,135.26,135.22,18.41936906]
[1750564763670,18.41936906,135.26,135.21,41.53061014]
[1750564763876,18.41936906,135.26,135.22,18.41936906]
[1750564764096,18.41936906,135.26,135.23,15.52909856]
[1750564766009,18.41936906,135.25,135.23,4.4368853]
[1750564766195,18.41936906,135.25,135.22,4.43721342]
[1750564766398,18.41936906,135.25,135.22,15.53005605]
[1750564766983,18.41936906,135.26,135.22,15.53005605]
[1750564769223,0.14216157,135.27,135.22,4.43721342]
[1750564769224,0.14216157,135.25,135.22,4.43721342]
[1750564769518,18.41936906,135.24,135.22,4.43721342]
[1750564769821,18.41936906,135.25,135.22,4.43721342]
[1750564770515,18.41936906,135.25,135.21,15.53127621]
[1750564771722,18.41936906,135.24,135.21,15.53127621]
[1750564771938,18.41936906,135.23,135.21,15.53127621]
[1750564772293,18.41936906,135.23,135.21,11.09373461]
[1750564772894,11.03745784,135.23,135.21,11.09373461]
[1750564773246,6.47756157,135.25,135.2,4.43786982]
[1750564773247,11.03745784,135.22,135.2,4.43786982]
[1750564773742,11.03745784,135.23,135.2,4.43786982]
[1750564774026,0.14216157,135.24,135.2,15.53254437]
[1750564774237,11.17961941,135.24,135.2,15.53254437]
[1750564777442,11.03745784,135.23,135.2,15.53254437]
[1750564778561,11.03745784,135.22,135.2,15.53254437]
[1750564779812,11.03745784,135.22,135.17,55.6871067]
[1750564779813,11.03745784,135.22,135.18,15.53484242]
[1750564780935,11.03745784,135.22,135.18,26.57230026]
[1750564781527,11.03745784,135.22,135.18,15.53484242]
[1750564781724,11.03745784,135.22,135.18,26.57230026]
[1750564781925,11.03745784,135.23,135.18,26.57230026]
[1750564782936,11.03745784,135.22,135.18,26.57230026]
[1750564783236,11.03745784,135.23,135.18,26.57230026]
[1750564783807,12.68925784,135.24,135.22,26.0]
[1750564784007,11.03745784,135.25,135.22,26.0]
[1750564784831,11.17961941,135.26,135.22,26.0]
[1750564785217,11.03745784,135.26,135.22,26.0]
[1750564785424,12.58235784,135.27,135.22,11.03745784]
[1750564786534,12.58235784,135.27,135.23,15.52909856]
[1750564788216,11.03745784,135.26,135.23,15.52909856]
[1750564788420,11.03745784,135.25,135.23,15.52909856]
[1750564788737,11.03745784,135.25,135.23,11.09221326]
[1750564790539,0.14216157,135.26,135.23,11.09221326]
[1750564790742,11.03745784,135.25,135.23,11.09221326]
[1750564793037,11.03745784,135.24,135.22,4.43721342]
[1750564793417,11.03745784,135.25,135.22,15.53024699]
[1750564793622,11.17961941,135.26,135.22,15.53024699]
[1750564794541,7.02748924,135.27,135.22,26.56770483]
[1750564794746,11.03745784,135.26,135.22,15.53024699]
[1750564797124,16.5538098,135.26,135.22,15.53024699]
[1750564798162,11.03745784,135.26,135.22,15.53024699]
[1750564798661,11.03745784,135.25,135.22,15.53024699]
[1750564799435,11.17961941,135.26,135.22,15.53024699]
[1750564800136,5.52860471,135.25,135.22,15.53024699]
[1750564800337,11.17961941,135.26,135.22,15.53024699]
[1750564800535,16.56606872,135.25,135.22,15.53024699]
[1750564800751,11.03745784,135.25,135.22,15.53024699]
[1750564800951,11.17961941,135.26,135.22,15.53024699]
[1750564801267,5.53292711,135.25,135.22,15.53024699]
[1750564801434,11.17961941,135.26,135.22,15.53024699]
[1750564801635,5.5323555,135.25,135.22,15.53024699]
[1750564801857,11.03745784,135.26,135.22,15.53024699]
[1750564802962,17.87106131,135.29,135.24,11.03745784]
[1750564803158,5.53048275,135.28,135.26,11.03745784]
[1750564803358,17.83745784,135.3,135.26,11.03745784]
[1750564803550,5.52886576,135.29,135.26,11.03745784]
[1750564803746,11.03745784,135.29,135.24,37.03745784]
[1750564803954,11.03745784,135.27,135.23,11.03745784]
[1750564804159,11.03745784,135.28,135.24,26.0]
[1750564804355,5.5277912,135.27,135.24,26.0]
[1750564804670,11.03745784,135.28,135.24,26.0]
[1750564804836,5.52709435,135.27,135.25,4.4362292]
[1750564805039,11.03745784,135.28,135.25,4.4362292]
[1750564805270,5.52710547,135.27,135.25,15.52680221]
[1750564805454,11.03745784,135.28,135.25,15.52680221]
[1750564805652,5.52626099,135.27,135.25,15.52680221]
[1750564805855,11.03745784,135.28,135.25,15.52680221]
[1750564806162,5.52595489,135.27,135.25,15.52680221]
[1750564806365,11.03745784,135.28,135.25,15.52680221]
[1750564806566,5.52557499,135.27,135.25,15.52680221]
[1750564806752,11.03745784,135.29,135.25,15.52680221]
[1750564806944,5.52517671,135.28,135.25,15.52680221]
[1750564807149,5.52517671,135.27,135.25,15.52680221]
[1750564807458,6.8,135.3,135.26,37.03745784]
[1750564807763,6.8,135.3,135.27,11.03745784]
[1750564807964,5.52499186,135.29,135.26,37.03745784]
[1750564808175,6.8,135.3,135.26,37.03745784]
[1750564808864,17.83745784,135.3,135.27,15.52450653]
[1750564809171,16.55881014,135.29,135.27,15.52450653]
[1750564809345,17.83745784,135.3,135.27,15.52450653]
[1750564809549,6.8,135.3,135.27,15.52450653]
[1750564810247,6.8,135.3,135.27,26.56196437]
[1750564810440,6.8,135.3,135.27,15.52450653]
[1750564810860,6.8,135.3,135.29,30.43491758]
[1750564811463,17.97961941,135.3,135.29,4.43491758]
[1750564811670,23.49365483,135.3,135.29,4.43491758]
[1750564811849,0.14216157,135.29,135.25,11.09055436]
[1750564812048,11.03745784,135.28,135.25,15.52678356]
[1750564812267,11.17961941,135.29,135.25,41.52678356]
[1750564812467,17.83745784,135.3,135.25,52.5642414]
[1750564812672,17.83745784,135.3,135.26,11.03745784]
[1750564812970,16.69169826,135.29,135.25,41.52678356]
[1750564813174,11.17961941,135.29,135.25,41.52678356]
[1750564813465,11.03745784,135.28,135.27,26.0]
[1750564813846,11.17961941,135.28,135.27,26.0]
[1750564814262,11.17961941,135.28,135.25,41.52678356]
[1750564814464,11.17961941,135.28,135.27,26.0]
[1750564814647,16.68905311,135.28,135.27,26.0]
[1750564814843,16.68905311,135.28,135.27,30.43557329]
[1750564815040,16.68905311,135.28,135.27,4.43557329]
[1750564817368,0.14216157,135.27,135.26,4.43579848]
[1750564817565,16.68905311,135.27,135.26,4.43579848]
[1750564818653,12.54975784,135.28,135.26,4.43579848]
[1750564818958,11.17961941,135.27,135.25,4.4362292]
[1750564821152,0.14216157,135.27,135.25,4.4362292]
[1750564822249,11.17961941,135.27,135.25,4.4362292]
[1750564822549,6.8,135.3,135.26,11.03745784]
[1750564822751,6.8,135.3,135.28,26.0]
[1750564824569,6.8,135.3,135.29,30.43491758]
[1750564824751,12.31568657,135.3,135.29,30.43491758]
[1750564824949,5.50990734,135.3,135.29,41.52221154]
[1750564825152,5.50990734,135.32,135.29,52.55966938]
[1750564825366,11.03745784,135.34,135.29,52.55966938]
[1750564825577,5.51176084,135.33,135.29,52.55966938]
[1750564825760,5.51176084,135.32,135.29,52.55966938]
[1750564825960,11.03745784,135.34,135.29,52.55966938]
[1750564826174,5.51204142,135.33,135.29,52.55966938]
[1750564826376,5.51149768,135.34,135.31,11.03745784]
[1750564826569,6.76,135.35,135.31,37.03745784]
[1750564826970,6.76,135.35,135.32,11.03745784]
[1750564827270,6.76,135.35,135.31,37.03745784]
[1750564827780,6.76,135.35,135.32,11.03745784]
[1750564828264,6.76,135.35,135.32,15.51877031]
[1750564828578,6.76,135.35,135.32,26.55622815]
[1750564829276,10.49763181,135.36,135.34,26.0]
[1750564829446,4.99000697,135.36,135.34,11.03745784]
[1750564829652,4.99000697,135.36,135.35,37.03745784]
[1750564830274,4.99000697,135.36,135.35,41.47040944]
[1750564832671,4.99000697,135.36,135.35,60.1200583]